Cogmind - Beta 14 @@@ ROGUE MODE // 2024.10.01 @ 21:28:23 Player: Wintermute Result: Destroyed by H-81 Overseer with Heavy Linear Accelerator Performance ------------- Evolutions (9) 4500 Regions Visited (28) 5600 Robots Destroyed (94) 470 Value Destroyed (2687) 2687 Prototype IDs (62) 1240 Alien Tech Used (2) 400 Bonus (2130) 2130 TOTAL SCORE: 17027 Bonus ------- High Alert Combat Kills 30 Entered DSFs 500 Met Data Miner 300 Met Zhirov 300 Met Warlord at Base 500 MAIN.C Attacked Warlord 500 Cogmind --------- Core Integrity 0/1600 Matter 282/300 Energy 98/100 System Corruption 5% Temperature Cool (0) Movement Core (50) Location -1/Command Parts ------- > --- POWER (2) -------- (None) > --- PROPULSION (7) --- (None) > --- UTILITY (13) ----- 0b10 Decoder Chip [Generic] > --- WEAPON (3) ------- (None) > --- INVENTORY (5) ---- (None) Peak State ------------ > --- POWER ------------ Improved Ion Engine Micro Fission Core > --- PROPULSION ------- Nuclear Pulse Array Q-thruster Electron Diverter Electron Diverter Impulse Thruster Array > --- UTILITY ---------- Medium Storage Unit Experimental Optical Array Advanced Sensor Array Advanced Signal Interpreter 0b10 Decoder Chip [Generic] Advanced Transmission Jammer Improved Core Shielding Makeshift Propulsion Shielding Improved Light Armor Plating Layered Light Armor Plating Advanced Hacking Suite Advanced Hacking Suite Advanced Hacking Suite > --- WEAPON ----------- Smartbomb Launcher Enhanced Force Lance > --- INVENTORY -------- Improved VTOL Module Field Propulsion Drive Nuclear Pulse Array Q-thruster Q-thruster Transdimensional Reconstructor Vortex Shotgun [Rating: 153] Favorites ----------- Power Ion Engine Engine Ion Engine Power Core Micro Fission Core Reactor Vortex Chain Reactor Propulsion Improved VTOL Module Treads Light Treads Leg Aluminum Leg Flight Unit Improved VTOL Module Utility Advanced Hacking Suite Device Seismic Detector Storage Medium Storage Unit Processor 0b10 Decoder Chip [Generic] Hackware Advanced Hacking Suite Protection Makeshift Propulsion Shielding Weapon Assault Rifle Energy Gun Backup Laser III Ballistic Gun Assault Rifle Launcher Smartbomb Launcher Piercing Weapon Enhanced Force Lance Special Melee Weapon Dirty Datajack Build | -11 -10 -10 -10 -9 -8 -7 -7 -6 -6 -6 -6 -5 -5 -5 -5 -5 -4 -4 -4 -4 -4 -4 -4 -3 -3 -2 -1 -1 ------- Run | Yrd Mat Min Exi Min Mat Fac DSF Fac Low Low Dat Pro Fac Upp Upp Zhi Pro Fac Was Fac Upp Upp War Pro Res Res Acc Com Slots Evolved 18 | . . . . . 4 2 . 2 . . . . 2 . . . . 2 . . . . . . 2 2 2 . Power 1 | . . . . . . . . . . . . . 1 . . . . . . . . . . . . . . . Propulsion 5 | . . . . . 2 1 . 1 . . . . . . . . . . . . . . . . 1 . . . Utility 11 | . . . . . 2 1 . 1 . . . . 1 . . . . 2 . . . . . . 1 2 1 . Weapon 1 | . . . . . . . . . . . . . . . . . . . . . . . . . . . 1 . Parts Attached 166 | 7 6 4 . 5 29 2 . 4 10 5 . 9 7 5 3 6 1 5 . 12 1 . 12 1 6 5 8 13 Power 17 | 1 1 . . . 1 . . . 4 . . 1 1 2 . . . . . 1 . . 4 . . 1 . . Engine 8 | 1 1 . . . . . . . 1 . . . . 1 . . . . . 1 . . 2 . . 1 . . Core 8 | . . . . . 1 . . . 3 . . 1 1 1 . . . . . . . . 1 . . . . . Reactor 1 | . . . . . . . . . . . . . . . . . . . . . . . 1 . . . . . Propulsion 48 | 2 2 . . 1 19 1 . 1 1 . . 1 2 1 . . 1 . . 4 . . 2 . 3 1 2 4 Treads 2 | 2 . . . . . . . . . . . . . . . . . . . . . . . . . . . . Leg 7 | . 2 . . 1 4 . . . . . . . . . . . . . . . . . . . . . . . Wheel . | . . . . . . . . . . . . . . . . . . . . . . . . . . . . . Hover . | . . . . . . . . . . . . . . . . . . . . . . . . . . . . . Flight 39 | . . . . . 15 1 . 1 1 . . 1 2 1 . . 1 . . 4 . . 2 . 3 1 2 4 Utility 62 | 2 1 2 . 1 6 1 . 3 2 3 . 1 3 1 2 4 . 5 . 5 . . 5 . 1 3 4 7 Device 27 | 1 . 1 . . 3 . . 1 1 1 . 1 1 . . . . 2 . 2 . . 2 . . 2 2 7 Storage 5 | 1 1 . . . 1 1 . . . . . . . . . . . . . 1 . . . . . . . . Processor 7 | . . . . . 1 . . 1 1 . . . . 1 . . . . . 2 . . 1 . . . . . Hackware 5 | . . . . . . . . . . 1 . . 1 . . 1 . 2 . . . . . . . . . . Protection 18 | . . 1 . 1 1 . . 1 . 1 . . 1 . 2 3 . 1 . . . . 2 . 1 1 2 . Artifact . | . . . . . . . . . . . . . . . . . . . . . . . . . . . . . Weapon 39 | 2 2 2 . 3 3 . . . 3 2 . 6 1 1 1 2 . . . 2 1 . 1 1 2 . 2 2 Energy Gun 6 | . . . . . . . . . . . . . . . . . . . . . 1 . 1 . 1 . 1 2 Energy Cannon . | . . . . . . . . . . . . . . . . . . . . . . . . . . . . . Ballistic Gun 14 | 2 2 1 . 2 2 . . . 1 2 . 1 . . . . . . . 1 . . . . . . . . Ballistic Cannon . | . . . . . . . . . . . . . . . . . . . . . . . . . . . . . Launcher 16 | . . 1 . 1 1 . . . 2 . . 5 1 1 1 1 . . . . . . . 1 . . 1 . Special Weapon . | . . . . . . . . . . . . . . . . . . . . . . . . . . . . . Impact Weapon . | . . . . . . . . . . . . . . . . . . . . . . . . . . . . . Slashing Weapon . | . . . . . . . . . . . . . . . . . . . . . . . . . . . . . Piercing Weapon 2 | . . . . . . . . . . . . . . . . . . . . 1 . . . . 1 . . . Special Melee Weapon 1 | . . . . . . . . . . . . . . . . 1 . . . . . . . . . . . . Unidentified Prototypes 10 | . . . . . 1 . . . . . . . . . . 2 . . . 1 . . 5 . . . . 1 Parts Lost 56 | . 3 . . 1 . . . . 7 3 . 2 . 4 2 . . . . . 1 . 1 . . 1 5 26 Power 8 | . 1 . . . . . . . 3 1 . . . 1 . . . . . . . . 1 . . . . 1 Propulsion 16 | . 1 . . . . . . . 1 . . 1 . 2 . . . . . . . . . . . 1 1 9 Utility 23 | . 1 . . . . . . . 2 1 . . . 1 1 . . . . . . . . . . . 3 14 Weapon 9 | . . . . 1 . . . . 1 1 . 1 . . 1 . . . . . 1 . . . . . 1 2 Highest Loss Streak 14 | . 3 . . 1 . . . . 4 7 . 1 . 4 2 . . . . . 1 . 1 . . 1 3 14 To Critical Strikes . | . . . . . . . . . . . . . . . . . . . . . . . . . . . . . Average Slot Usage (%) 90 | . 97 100 100 100 97 92 92 98 96 89 93 86 91 82 79 76 80 84 84 85 84 84 87 86 90 90 83 29 Engine 6 | . 13 14 14 14 2 . . . . . . . 2 . . . . . . 4 5 5 7 5 4 4 4 . Core 1 | . . . . . 6 7 7 6 4 . . . 5 6 5 5 5 5 5 . . . . 5 4 4 4 . Treads 3 | . 24 . . . . . . . . . . . . . . . . . . . . . . . . . . . Leg 7 | . 3 28 28 28 10 . . . . . . . . . . . . . . . . . . . . . . . Flight 17 | . . . . . 24 38 38 40 40 40 40 35 33 24 23 23 27 26 26 22 21 21 21 21 23 20 19 7 Device 7 | . 11 7 . . 10 7 7 13 10 10 13 12 6 5 3 . . 5 5 5 5 5 5 5 4 7 9 5 Storage 8 | . 14 14 14 14 9 7 7 6 6 6 6 6 5 5 5 5 5 5 5 5 5 5 5 5 4 4 4 1 Processor 7 | . . . . . 6 7 7 11 13 13 13 13 11 15 17 17 17 11 10 13 15 15 15 15 14 13 8 4 Hackware 5 | . . . . . . . . . . 4 6 6 9 6 5 5 5 12 15 15 15 15 15 15 14 13 12 6 Protection 6 | . . 7 14 14 8 7 7 6 6 . . . 5 5 6 11 11 11 10 6 5 5 5 5 9 13 14 1 Ballistic Gun 13 | . 28 28 28 21 18 15 15 13 8 12 13 10 4 . . . . . . 4 3 . . . . . . . Piercing Weapon 1 | . . . . . . . . . . . . . . . . . . . . 4 5 5 5 2 4 4 4 1 Peak Build Rating 153 | 7 10 11 11 13 38 42 42 53 56 52 52 59 71 71 69 74 80 96 97 102 101 98 130 119 137 147 153 132 Average Rating 52 | 5 8 10 11 11 30 41 41 52 54 49 52 51 63 62 65 68 78 93 96 96 99 98 104 116 131 145 145 47 On Entrance 66 | . 7 9 11 11 13 37 41 41 53 48 52 52 59 71 62 69 74 80 96 97 101 98 98 119 115 137 147 127 Naked Turns . | . . . . . . . . . . . . . . . . . . . . . . . . . . . . . Heaviest Build 61 | 15 52 54 54 54 61 27 27 31 38 21 19 27 30 33 28 28 28 35 29 35 32 29 38 36 38 48 53 55 Greatest Support 53 | 40 40 20 20 20 40 28 28 33 33 32 20 32 34 34 28 28 35 35 35 38 38 38 42 42 53 53 53 50 Greatest Overweight (x) 4 | . 4 2 2 2 2 . . . 1 . . 1 1 . . . . . . 1 . . . . . . . 2 Average Overweight (x) . | . . 2 2 2 . . . . . . . . . . . . . . . . . . . . . . . . Largest Inventory Capacity 20 | 8 20 20 20 20 20 10 10 10 10 10 10 10 10 10 10 10 10 10 10 10 10 10 10 10 10 10 10 10 Average Capacity 12 | 7 15 20 20 20 12 9 10 10 10 10 10 10 10 10 10 10 10 10 10 10 10 10 10 10 10 10 10 6 Most Carried 20 | 2 18 20 20 20 20 7 10 6 7 5 5 10 10 10 10 10 9 9 10 10 10 10 10 10 10 10 10 7 Average Carried 10 | 1 9 18 19 19 12 6 7 5 6 4 5 8 9 9 9 8 9 8 9 9 9 10 10 9 9 9 7 2 Final Capacity 20 | 8 20 20 20 20 8 10 10 10 10 10 10 10 10 10 10 10 10 10 10 10 10 10 10 10 10 10 10 5 Final Carried 20 | 2 17 20 20 20 8 7 7 6 4 5 5 10 10 9 8 9 9 9 10 10 10 10 10 10 10 10 7 . Class Distribution -------------------- 28% | Mutant 20% | Sprinter 20% | Scavenger-Mutant 15% | Hacker-Scout 9% | Hacker-Sprinter 3% | Hacker-Ninja Dominant Class ---------------- Mutant | -10/Materials Scavenger-Mutant | -10/Mines Scavenger-Mutant | -10/Exiles Scavenger-Mutant | -9/Mines Sprinter | -8/Materials Sprinter | -7/Factory Sprinter | -7/DSF Sprinter | -6/Factory Sprinter | -6/Lower Caves Sprinter | -6/Lower Caves Mutant | -6/Data Miner Mutant | -5/Proximity Caves Hacker-Sprinter | -5/Factory Sprinter | -5/Upper Caves Derelict-Sprinter | -5/Upper Caves Sprinter | -5/Zhirov Derelict-Sprinter | -4/Proximity Caves Hacker-Sprinter | -4/Factory Hacker-Sprinter | -4/Waste Hacker-Scout | -4/Factory Hacker-Scout | -4/Upper Caves Hacker-Scout | -4/Upper Caves Hacker-Scout | -4/Warlord Hacker-Scout | -3/Proximity Caves Hacker-Scout | -3/Research Hacker-Ninja | -2/Research Hacker-Sprinter | -1/Access Mutant | -1/Command Resources | -11 -10 -10 -10 -9 -8 -7 -7 -6 -6 -6 -6 -5 -5 -5 -5 -5 -4 -4 -4 -4 -4 -4 -4 -3 -3 -2 -1 -1 ----------- Run | Yrd Mat Min Exi Min Mat Fac DSF Fac Low Low Dat Pro Fac Upp Upp Zhi Pro Fac Was Fac Upp Upp War Pro Res Res Acc Com Matter Collected 3340 | 264 327 96 . 187 466 . . 119 398 124 . 303 138 82 51 115 50 . . 186 10 . . 144 . 124 83 73 Remotely . | . . . . . . . . . . . . . . . . . . . . . . . . . . . . . Salvage Created 2761 | 76 514 106 . 199 476 . . . 181 51 . 146 94 46 117 121 . . . 266 . . . 29 . 140 189 10 Parts 154 | 11 41 8 . 4 20 . . . 4 1 . 12 8 6 9 1 . . . 9 . . . 1 . 3 15 1 Haulers Intercepted 6 | . . . . . 4 . . . . . . . . . . . . . . 1 . . . . . 1 . . Recyclers Shooed . | . . . . . . . . . . . . . . . . . . . . . . . . . . . . . Parts Field Recycled . | . . . . . . . . . . . . . . . . . . . . . . . . . . . . . Retrieved Matter . | . . . . . . . . . . . . . . . . . . . . . . . . . . . . . Parts Self-Destructed 33 | . . . . . . . . . 2 1 . 12 . 13 3 1 . . . . 1 . . . . . . . Prevented 8 | . . . . . . . . . . . . . . 6 . . . . . . 2 . . . . . . . Kills | -11 -10 -10 -10 -9 -8 -7 -7 -6 -6 -6 -6 -5 -5 -5 -5 -5 -4 -4 -4 -4 -4 -4 -4 -3 -3 -2 -1 -1 ------- Run | Yrd Mat Min Exi Min Mat Fac DSF Fac Low Low Dat Pro Fac Upp Upp Zhi Pro Fac Was Fac Upp Upp War Pro Res Res Acc Com Combat Hostiles Destroyed 78 | . 17 5 . 9 3 . . . 10 3 . 9 . 3 11 . . . . . . . . 2 . . 5 1 Melee 2 | . . . . . . . . . . . . . . . . . . . . . . . . . . . 2 . Guns 33 | . 16 2 . 7 3 . . . . 2 . 2 . . . . . . . . . . . . . . . 1 AOE 42 | . 1 3 . 2 . . . . 10 . . 7 . 3 11 . . . . . . . . 2 . . 3 . Classes Destroyed 13 | 1 2 1 . 1 3 . . . 1 . . . 2 . . . . . . 1 . . . . . . 1 . Worker 3 | . . . . . . . . . . . . . 2 . . . . . . . . . . . . . 1 . Builder 1 | . . . . . 1 . . . . . . . . . . . . . . . . . . . . . . . Tunneler 5 | 4 . . . . . . . . . . . . 1 . . . . . . . . . . . . . . . Hauler 6 | . . . . . 4 . . . . . . . . . . . . . . 1 . . . . . 1 . . Recycler 2 | . . . . . 1 . . . . . . . . . . . . . . 1 . . . . . . . . Operator 1 | . . . . . . . . . . . . . 1 . . . . . . . . . . . . . . . Watcher 4 | . . . . . . . . . . . . . . . . . . . . 1 . . . . . 1 2 . Swarmer 44 | . 6 3 . . . . . . 4 3 . 7 . 3 11 . . . . . . . . 2 . . 4 1 Grunt 23 | . 11 . . 3 3 . . . 4 . . 2 . . . . . . . . . . . . . . . . Brawler 1 | . . . . . . . . . 1 . . . . . . . . . . . . . . . . . . . Sentry 3 | . . 2 . . . . . . 1 . . . . . . . . . . . . . . . . . . . Programmer 1 | . . . . . . . . . . . . . . . . . . . . . . . . . . . 1 . Assembled 6 | . . . . 6 . . . . . . . . . . . . . . . . . . . . . . . . Best Kill Streak 8 | 2 8 3 . 3 3 . . . 4 2 . 5 2 3 5 . . . . 1 . . . 2 . 2 5 1 Combat Bots Only 8 | . 8 3 . 3 3 . . . 4 2 . 5 . 3 5 . . . . . . . . 2 . . 4 1 Max Kills in Single Turn 4 | 1 2 2 . 2 1 . . . 3 1 . 2 1 3 4 . . . . 1 . . . 1 . 1 3 1 Gunslinging 1 | . 1 1 . 1 . . . . . . . . . . . . . . . . . . . . . . . . Exploded 4 | . 1 2 . 1 . . . . 3 . . 2 . 3 4 . . . . . . . . 1 . . 2 . Melee 1 | . . . . . . . . . . . . . . . . . . . . . . . . . . . 1 . Uniques/NPCs Destroyed . | . . . . . . . . . . . . . . . . . . . . . . . . . . . . . Combat | -11 -10 -10 -10 -9 -8 -7 -7 -6 -6 -6 -6 -5 -5 -5 -5 -5 -4 -4 -4 -4 -4 -4 -4 -3 -3 -2 -1 -1 -------- Run | Yrd Mat Min Exi Min Mat Fac DSF Fac Low Low Dat Pro Fac Upp Upp Zhi Pro Fac Was Fac Upp Upp War Pro Res Res Acc Com Hostile Shots Fired 695 | . 93 16 . 22 16 . 3 . 59 25 . 30 15 29 14 . 12 . . 12 21 . 13 1 . 2 64 248 Missed 301 | . 31 6 . 7 4 . 2 . 28 7 . 10 6 15 7 . 9 . . 5 13 . 8 1 . 2 31 109 Damage Taken 7477 | . 729 141 . 215 147 . 40 . 632 321 . 315 107 310 112 . 26 . . 138 142 . 152 . . 46 943 2961 Core 2188 | . 105 32 . 73 14 . . . 97 63 . 87 . . 31 . 9 . . 41 34 . 54 . . . 114 1434 Absorbed by Shields 278 | . . . . . 54 . 14 . . . . . . . . . . . . . . . . . . . . 210 Redirected to Shielding 134 | . . . . . . . . . . . . . . . 2 . . . . 6 1 . 3 . . 6 72 44 Regen/Repaired (Parts) 142 | . . . . . 56 . . . . . . . 49 . . . . . . . . . 22 . . 15 . . Core Remaining (%) 85 | 100 . . . 16 97 . 100 . . . . 70 . . . . 96 . . . . . . 88 100 100 . . Volleys Fired 209 | 14 32 5 . 12 40 1 . . 33 16 . 21 10 3 7 . 1 . . . 1 . . 3 . . 5 5 Largest 2 | 2 2 2 . 2 2 2 . . 1 2 . 2 2 1 1 . 1 . . . 1 . . 1 . . 1 1 Hottest 73 | 40 46 56 . 53 43 40 . . 33 53 . 72 73 39 46 . 46 . . . 40 . . 46 . . 46 60 Shots Fired 335 | 28 64 9 . 23 78 2 . . 33 31 . 32 11 3 7 . 1 . . . 1 . . 3 . . 4 5 Gun 269 | 28 64 7 . 20 76 2 . . . 30 . 26 10 . . . . . . . 1 . . . . . . 5 Cannon . | . . . . . . . . . . . . . . . . . . . . . . . . . . . . . Launcher 66 | . . 2 . 3 2 . . . 33 1 . 6 1 3 7 . 1 . . . . . . 3 . . 4 . Special . | . . . . . . . . . . . . . . . . . . . . . . . . . . . . . Kinetic 261 | 28 64 7 . 20 76 2 . . . 30 . 26 8 . . . . . . . . . . . . . . . Thermal 3 | . . . . . . . . . . . . . 2 . . . . . . . 1 . . . . . . . Explosive 66 | . . 2 . 3 2 . . . 33 1 . 6 1 3 7 . 1 . . . . . . 3 . . 4 . Electromagnetic . | . . . . . . . . . . . . . . . . . . . . . . . . . . . . . Entropic 5 | . . . . . . . . . . . . . . . . . . . . . . . . . . . . 5 Robot Hit Streak 12 | 5 12 4 . 5 8 2 . . 4 4 . 6 3 . 8 . . . . . . . . . . . . 2 Robot Miss Streak 8 | 2 3 2 . 2 5 1 . . 4 8 . 3 2 . . . . . . . . . . . . . . 6 Penetration Max . | . . . . . . . . . . . . . . . . . . . . . . . . . . . . . Secondary Targets 8 | . 5 1 . 1 . . . . . . . 1 . . . . . . . . . . . . . . . . Max Gunslinging Chain 1 | . 1 1 . 1 . . . . . . . 1 . . . . . . . . . . . . . . . . Shots Hit Robots 209 | 15 48 6 . 16 48 1 . . 10 14 . 16 5 . 6 5 . . . 3 . . . . . 3 11 2 Core Hits 183 | 4 29 6 . 16 20 . . . 29 5 . 15 4 10 12 3 . . . 2 . . . 11 . 3 10 4 Critical Kills 4 | . 1 1 . 1 . . . . . . . . 1 . . . . . . . . . . . . . . . Critical Parts Destroyed 2 | . . . . . . . . . . 2 . . . . . . . . . . . . . . . . . . Critical Strikes 8 | . 1 1 . 1 . . . . . 2 . . 1 . . . . . . 1 . . . . . . 1 . Destroy 6 | . 1 1 . 1 . . . . . 2 . . 1 . . . . . . . . . . . . . . . Impale 2 | . . . . . . . . . . . . . . . . . . . . 1 . . . . . . 1 . Melee Attacks 124 | . . . . . . . . . . . . . . . . 5 . . . 28 2 5 . 6 3 24 45 6 Impact . | . . . . . . . . . . . . . . . . . . . . . . . . . . . . . Slashing . | . . . . . . . . . . . . . . . . . . . . . . . . . . . . . Piercing 124 | . . . . . . . . . . . . . . . . 5 . . . 28 2 5 . 6 3 24 45 6 Sneak Attacks 4 | . . . . . . . . . . . . . . . . . . . . 2 . . . . . 1 1 . Combat Hostiles . | . . . . . . . . . . . . . . . . . . . . . . . . . . . . . Follow-up Attacks . | . . . . . . . . . . . . . . . . . . . . . . . . . . . . . Damage Inflicted 8608 | 179 714 305 . 340 662 13 . . 1256 319 . 893 102 324 956 22 117 . . 306 . . . 429 . 179 1304 188 Guns 2671 | 179 669 98 . 204 662 13 . . . 281 . 298 102 . . . . . . . . . . . . . . 165 Cannons . | . . . . . . . . . . . . . . . . . . . . . . . . . . . . . Explosions 4699 | . 35 207 . 136 . . . . 1256 38 . 595 . 324 956 . 117 . . . . . . 429 . . 606 . Melee 1205 | . . . . . . . . . . . . . . . . 22 . . . 306 . . . . . 179 698 . Ramming 33 | . 10 . . . . . . . . . . . . . . . . . . . . . . . . . . 23 Kinetic 2492 | 179 669 98 . 204 662 13 . . . 281 . 298 88 . . . . . . . . . . . . . . . Thermal 14 | . . . . . . . . . . . . . 14 . . . . . . . . . . . . . . . Explosive 4664 | . . 207 . 136 . . . . 1256 38 . 595 . 324 956 . 117 . . . . . . 429 . . 606 . Electromagnetic 35 | . 35 . . . . . . . . . . . . . . . . . . . . . . . . . . . Impact . | . . . . . . . . . . . . . . . . . . . . . . . . . . . . . Slashing . | . . . . . . . . . . . . . . . . . . . . . . . . . . . . . Piercing 1205 | . . . . . . . . . . . . . . . . 22 . . . 306 . . . . . 179 698 . Entropic 165 | . . . . . . . . . . . . . . . . . . . . . . . . . . . . 165 Highest Corruption 8 | . 1 1 1 1 . . . . . . . . . . . . . . . . . . . . . 1 8 6 Average Corruption 1 | . 1 1 1 1 . . . . . . . . . . . . . . . . . . . . . 1 2 4 Corruption Purged 6 | . . . . . . . . . . . . . . . . . . . . . . . . . . . 3 3 Corruption Blocked . | . . . . . . . . . . . . . . . . . . . . . . . . . . . . . Effects 28 | . . . 11 1 . . . . . . . . . . . . . . . . . . . . . 3 6 7 Message Errors 5 | . . . 2 1 . . . . . . . . . . . . . . . . . . . . . . 1 1 Matter Fused 7 | . . . 4 . . . . . . . . . . . . . . . . . . . . . . 1 1 1 Heat Flow Errors 4 | . . . 2 . . . . . . . . . . . . . . . . . . . . . . 1 . 1 Energy Discharges 2 | . . . 1 . . . . . . . . . . . . . . . . . . . . . . . . 1 Parts Rejected 2 | . . . . . . . . . . . . . . . . . . . . . . . . . . . . 2 Parts Fused 1 | . . . . . . . . . . . . . . . . . . . . . . . . . . . 1 . Data Loss (minor) 2 | . . . 1 . . . . . . . . . . . . . . . . . . . . . . . . 1 Data Loss (major) 1 | . . . . . . . . . . . . . . . . . . . . . . . . . . . 1 . Alerts 3 | . . . 1 . . . . . . . . . . . . . . . . . . . . . . 1 1 . Weapon Failures 1 | . . . . . . . . . . . . . . . . . . . . . . . . . . . 1 . Overload Shots . | . . . . . . . . . . . . . . . . . . . . . . . . . . . . . Overflow Damage 495 | . 1 47 . . . . . . 50 5 . . . . 57 . . . . 218 . . . . . . 117 . Projectiles . | . . . . . . . . . . . . . . . . . . . . . . . . . . . . . Explosions 248 | . 1 47 . . . . . . 50 5 . . . . 57 . . . . . . . . . . . 88 . Melee 247 | . . . . . . . . . . . . . . . . . . . . 218 . . . . . . 29 . Knockbacks . | . . . . . . . . . . . . . . . . . . . . . . . . . . . . . Impact . | . . . . . . . . . . . . . . . . . . . . . . . . . . . . . Kinetic . | . . . . . . . . . . . . . . . . . . . . . . . . . . . . . Secondary . | . . . . . . . . . . . . . . . . . . . . . . . . . . . . . Self-Inflicted Damage 307 | . 89 . . 15 . . . . 118 38 . . . 36 . . . . . . . . . . . . . 11 Shots 10 | . 3 . . 1 . . . . 4 1 . . . 1 . . . . . . . . . . . . . . Rammed 8 | . 4 . . . . . . . . . . . . . . . . . . . . . . . . . . 4 Targets Rammed 8 | . 4 . . . . . . . . . . . . . . . . . . . . . . . . . . 4 Kicked . | . . . . . . . . . . . . . . . . . . . . . . . . . . . . . Crushed . | . . . . . . . . . . . . . . . . . . . . . . . . . . . . . Highest Temperature 447 | . 11 8 252 37 447 36 . 26 184 13 . 12 248 53 10 10 5 . . 32 . . . 8 . 196 40 136 Average Temperature 55 | . 2 4 108 23 103 14 . 11 57 5 . 10 106 16 9 6 5 . . 23 . . . 5 . 33 12 91 Received Heat Transfer 952 | . 219 36 . 57 72 . . . 123 27 . 63 . 99 27 . . . . 46 9 . . . . . . 174 Siege Activations . | . . . . . . . . . . . . . . . . . . . . . . . . . . . . . Robots Corrupted . | . . . . . . . . . . . . . . . . . . . . . . . . . . . . . Combat Hostiles . | . . . . . . . . . . . . . . . . . . . . . . . . . . . . . Parts Fried 1 | . . . . . . . . . . . . 1 . . . . . . . . . . . . . . . . Impact Corruptions . | . . . . . . . . . . . . . . . . . . . . . . . . . . . . . Robots Melted . | . . . . . . . . . . . . . . . . . . . . . . . . . . . . . Combat Hostiles . | . . . . . . . . . . . . . . . . . . . . . . . . . . . . . Parts Melted . | . . . . . . . . . . . . . . . . . . . . . . . . . . . . . Heat Transferred 37 | . . . . . . . . . . . . . 37 . . . . . . . . . . . . . . . Parts Sabotaged . | . . . . . . . . . . . . . . . . . . . . . . . . . . . . . Parts Stolen . | . . . . . . . . . . . . . . . . . . . . . . . . . . . . . Parts Stripped . | . . . . . . . . . . . . . . . . . . . . . . . . . . . . . Power Chain Reactions 1 | . 1 . . . . . . . . . . . . . . . . . . . . . . . . . . . Alert | -11 -10 -10 -10 -9 -8 -7 -7 -6 -6 -6 -6 -5 -5 -5 -5 -5 -4 -4 -4 -4 -4 -4 -4 -3 -3 -2 -1 -1 ------- Run | Yrd Mat Min Exi Min Mat Fac DSF Fac Low Low Dat Pro Fac Upp Upp Zhi Pro Fac Was Fac Upp Upp War Pro Res Res Acc Com Peak Influence 897 | 20 219 140 . 106 159 33 41 21 . . . . 98 . . . . 300 135 180 . . . . 82 156 632 897 Initial 328 | . 13 . . . 40 18 26 21 . . . . 53 . . . . 300 105 94 . . . . 57 45 102 328 Average 129 | 7 78 91 . 73 71 22 29 21 . . . . 55 . . . . 300 122 86 . . . . 70 86 301 592 Maximum Alert Level 3 | . 1 . . . . . . . . . . . . . . . . 1 . . . . . . . . 2 3 Low Security (%) 84 | 100 91 100 . 100 100 100 100 100 . . . . 100 . . . . . 100 100 . . . . 100 100 35 . Level 1 6 | . 8 . . . . . . . . . . . . . . . . 100 . . . . . . . . 33 13 Level 2 5 | . . . . . . . . . . . . . . . . . . . . . . . . . . . 31 51 Level 3 2 | . . . . . . . . . . . . . . . . . . . . . . . . . . . . 34 Level 4 . | . . . . . . . . . . . . . . . . . . . . . . . . . . . . . Level 5 . | . . . . . . . . . . . . . . . . . . . . . . . . . . . . . High Security . | . . . . . . . . . . . . . . . . . . . . . . . . . . . . . Max Security . | . . . . . . . . . . . . . . . . . . . . . . . . . . . . . Squads Dispatched 22 | . 5 . . . 1 . . . . . . . 3 . 1 . . . . 3 . . . . . . 2 7 Investigation 15 | . 3 . . . 1 . . . . . . . 2 . . . . . . 2 . . . . . . 1 6 Extermination 1 | . . . . . . . . . . . . . . . . . . . . 1 . . . . . . . . Reinforcement 5 | . 2 . . . . . . . . . . . 1 . . . . . . . . . . . . . 1 1 Assault 1 | . . . . . . . . . . . . . . . 1 . . . . . . . . . . . . . Garrison . | . . . . . . . . . . . . . . . . . . . . . . . . . . . . . Intercept . | . . . . . . . . . . . . . . . . . . . . . . . . . . . . . Searches Triggered . | . . . . . . . . . . . . . . . . . . . . . . . . . . . . . Data Miner Redirects 6 | . . . . . . . . . . . . . 1 . . . . . . . . . . . . . 1 4 Construction Impeded . | . . . . . . . . . . . . . . . . . . . . . . . . . . . . . Haulers Reinforced . | . . . . . . . . . . . . . . . . . . . . . . . . . . . . . Active Scanning Responses . | . . . . . . . . . . . . . . . . . . . . . . . . . . . . . Cargo Convoy Interrupts . | . . . . . . . . . . . . . . . . . . . . . . . . . . . . . Stealth | -11 -10 -10 -10 -9 -8 -7 -7 -6 -6 -6 -6 -5 -5 -5 -5 -5 -4 -4 -4 -4 -4 -4 -4 -3 -3 -2 -1 -1 --------- Run | Yrd Mat Min Exi Min Mat Fac DSF Fac Low Low Dat Pro Fac Upp Upp Zhi Pro Fac Was Fac Upp Upp War Pro Res Res Acc Com Distress Signals 14 | . 2 . . . 1 . . . . . . . 1 . . . . . . 1 . . . . . 2 3 4 Communications Jammed 29 | . . . . . . . . . . . . . . . . . . . . . . . . . . . 28 1 Distress Signals 29 | . . . . . . . . . . . . . . . . . . . . . . . . . . . 28 1 Times Spotted 256 | . 28 5 . 9 8 1 1 . 14 5 . 11 3 16 13 . 2 . 6 12 8 . 17 5 2 4 28 58 Peak Tracking Total 21 | . 10 3 . 3 3 1 1 . 4 3 . 5 4 13 14 . 4 . 6 7 8 . 9 5 2 2 9 21 Tactical Retreats 45 | . 1 . . . 1 . 1 . . 4 . 2 2 4 4 . . . . 2 1 . 2 2 . . 7 12 Traps | -11 -10 -10 -10 -9 -8 -7 -7 -6 -6 -6 -6 -5 -5 -5 -5 -5 -4 -4 -4 -4 -4 -4 -4 -3 -3 -2 -1 -1 ------- Run | Yrd Mat Min Exi Min Mat Fac DSF Fac Low Low Dat Pro Fac Upp Upp Zhi Pro Fac Was Fac Upp Upp War Pro Res Res Acc Com Traps Triggered 10 | . 3 . . . . . 1 . . . . . 1 . . . . 1 . . . . . . . 1 1 2 Indirectly . | . . . . . . . . . . . . . . . . . . . . . . . . . . . . . Trap Hack Attempts . | . . . . . . . . . . . . . . . . . . . . . . . . . . . . . Triggered . | . . . . . . . . . . . . . . . . . . . . . . . . . . . . . Disarmed . | . . . . . . . . . . . . . . . . . . . . . . . . . . . . . Reprogrammed . | . . . . . . . . . . . . . . . . . . . . . . . . . . . . . Reused . | . . . . . . . . . . . . . . . . . . . . . . . . . . . . . Traps Extracted . | . . . . . . . . . . . . . . . . . . . . . . . . . . . . . Installed . | . . . . . . . . . . . . . . . . . . . . . . . . . . . . . Triggered 6 | . . . . . . . . . . 1 . 1 . . . . . . . . 2 . 2 . . . . . Machines | -11 -10 -10 -10 -9 -8 -7 -7 -6 -6 -6 -6 -5 -5 -5 -5 -5 -4 -4 -4 -4 -4 -4 -4 -3 -3 -2 -1 -1 ---------- Run | Yrd Mat Min Exi Min Mat Fac DSF Fac Low Low Dat Pro Fac Upp Upp Zhi Pro Fac Was Fac Upp Upp War Pro Res Res Acc Com Machines Disabled 4 | . 2 . . . . . . . . . . . . 2 . . . . . . . . . . . . . . Max in Single Turn 2 | . 2 . . . . . . . . . . . . 1 . . . . . . . . . . . . . . Garrison Access 5 | . . . . . 1 . . . . . . . 1 . . . . . . . . . . . . 1 2 . Machines Repaired . | . . . . . . . . . . . . . . . . . . . . . . . . . . . . . Machines Dismantled . | . . . . . . . . . . . . . . . . . . . . . . . . . . . . . Machines Sabotaged . | . . . . . . . . . . . . . . . . . . . . . . . . . . . . . Overloaded Fab Kills . | . . . . . . . . . . . . . . . . . . . . . . . . . . . . . Hacking | -11 -10 -10 -10 -9 -8 -7 -7 -6 -6 -6 -6 -5 -5 -5 -5 -5 -4 -4 -4 -4 -4 -4 -4 -3 -3 -2 -1 -1 --------- Run | Yrd Mat Min Exi Min Mat Fac DSF Fac Low Low Dat Pro Fac Upp Upp Zhi Pro Fac Was Fac Upp Upp War Pro Res Res Acc Com Machines Accessed 65 | . 5 . 2 . 7 2 . . . . 4 . 5 1 . 7 . 1 . 8 . . 10 . 1 3 4 5 Terminals 27 | . 5 . . . 4 1 . . . . . . 2 1 . . . . . 5 . . . . 1 2 1 5 Fabricators 2 | . . . . . . . . . . . . . . . . . . . . 1 . . . . . . 1 . Repair Stations 3 | . . . . . 1 . . . . . . . 1 . . . . . . . . . . . . 1 . . Recycling Units 4 | . . . . . 1 1 . . . . . . . . . . . 1 . 1 . . . . . . . . Scanalyzers 1 | . . . . . . . . . . . . . . . . . . . . 1 . . . . . . . . Garrison Access 5 | . . . . . 1 . . . . . . . 2 . . . . . . . . . . . . . 2 . Total Hacks 169 | . 10 . 8 . 15 3 . . . . 30 . 10 5 . 20 . 1 . 18 . . 18 . 2 5 10 14 Successful 131 | . 6 . 8 . 8 2 . . . . 30 . 6 5 . 20 . 1 . 13 . . 18 . 1 4 4 5 Failed 37 | . 4 . . . 6 1 . . . . . . 4 . . . . . . 5 . . . . 1 1 6 9 Catastrophic 8 | . 1 . . . 1 1 . . . . . . 1 . . . . . . . . . . . 1 . . 3 Database Lockouts 1 | . . . . . 1 . . . . . . . . . . . . . . . . . . . . . . . Manual 37 | . 10 . 2 . 7 . . . . . . . . . . . . . . 6 . . 3 . 1 . 3 5 Terminals 62 | . 10 . . . 9 1 . . . . . . 4 5 . . . . . 12 . . . . 2 3 2 14 Fabricators 5 | . . . . . . . . . . . . . . . . . . . . 2 . . . . . . 3 . Repair Stations 7 | . . . . . 2 . . . . . . . 3 . . . . . . . . . . . . 2 . . Recycling Units 8 | . . . . . 3 2 . . . . . . . . . . . 1 . 2 . . . . . . . . Scanalyzers 2 | . . . . . . . . . . . . . . . . . . . . 2 . . . . . . . . Garrison Access 9 | . . . . . 1 . . . . . . . 3 . . . . . . . . . . . . . 5 . Terminal Hacks 107 | . 6 . 8 . 3 1 . . . . 30 . 2 5 . 20 . . . 6 . . 18 . 1 2 . 5 Record 48 | . . . 7 . . . . . . . 11 . . 5 . 8 . . . 1 . . 11 . 1 . . 4 Part Schematic 18 | . 1 . . . 1 . . . . . 12 . . . . 4 . . . . . . . . . . . . Robot Schematic 4 | . . . . . . . . . . . 4 . . . . . . . . . . . . . . . . . Robot Analysis 6 | . 2 . . . . . . . . . . . . . . 4 . . . . . . . . . . . . Prototype ID Bank 12 | . . . . . . . . . . . 3 . . . . 4 . . . . . . 5 . . . . . Open Door 2 | . . . . . . . . . . . . . . . . . . . . . . . 2 . . . . . Open DSF 2 | . . . . . . 1 . . . . . . . . . . . . . . . . . . . 1 . . Level Access Points 2 | . . . . . . . . . . . . . . . . . . . . 1 . . . . . 1 . . Branch Access Points 1 | . . . . . . . . . . . . . . . . . . . . 1 . . . . . . . . Emergency Access Points 1 | . . . . . . . . . . . . . 1 . . . . . . . . . . . . . . . Fabricator Index 1 | . . . . . . . . . . . . . . . . . . . . 1 . . . . . . . . Garrison Index 1 | . . . . . . . . . . . . . . . . . . . . 1 . . . . . . . . Alert Level 1 | . 1 . . . . . . . . . . . . . . . . . . . . . . . . . . . Unreport Threat 3 | . 1 . . . 1 . . . . . . . 1 . . . . . . . . . . . . . . . Hauler Manifests 2 | . 1 . . . 1 . . . . . . . . . . . . . . . . . . . . . . . Zone Layout 1 | . . . . . . . . . . . . . . . . . . . . 1 . . . . . . . . Derelict Proto ID Bank 1 | . . . 1 . . . . . . . . . . . . . . . . . . . . . . . . . Disengage Seal 1 | . . . . . . . . . . . . . . . . . . . . . . . . . . . . 1 Fabricator Hacks 3 | . . . . . . . . . . . . . . . . . . . . 2 . . . . . . 1 . Load Schematic 2 | . . . . . . . . . . . . . . . . . . . . 1 . . . . . . 1 . Build 1 | . . . . . . . . . . . . . . . . . . . . 1 . . . . . . . . Repair Station Hacks 7 | . . . . . 2 . . . . . . . 3 . . . . . . . . . . . . 2 . . Scan Component 3 | . . . . . 1 . . . . . . . 1 . . . . . . . . . . . . 1 . . Repair 3 | . . . . . 1 . . . . . . . 1 . . . . . . . . . . . . 1 . . Refit 1 | . . . . . . . . . . . . . 1 . . . . . . . . . . . . . . . Recycling Unit Hacks 6 | . . . . . 2 1 . . . . . . . . . . . 1 . 2 . . . . . . . . Report Inventory 4 | . . . . . 1 1 . . . . . . . . . . . 1 . 1 . . . . . . . . Retrieve Components 2 | . . . . . 1 . . . . . . . . . . . . . . 1 . . . . . . . . Scanalyzer 2 | . . . . . . . . . . . . . . . . . . . . 2 . . . . . . . . Insert Component 1 | . . . . . . . . . . . . . . . . . . . . 1 . . . . . . . . Analyze 1 | . . . . . . . . . . . . . . . . . . . . 1 . . . . . . . . Garrison Access Hacks 4 | . . . . . 1 . . . . . . . 1 . . . . . . . . . . . . . 2 . Seal Access 4 | . . . . . 1 . . . . . . . 1 . . . . . . . . . . . . . 2 . Unauthorized Hacks 2 | . . . . . . . . . . . . . . . . . . . . 1 . . . . . . 1 . Terminals 1 | . . . . . . . . . . . . . . . . . . . . 1 . . . . . . . . Track 1 | . . . . . . . . . . . . . . . . . . . . 1 . . . . . . . . Fabricators . | . . . . . . . . . . . . . . . . . . . . . . . . . . . . . Repair Stations . | . . . . . . . . . . . . . . . . . . . . . . . . . . . . . Recycling Units . | . . . . . . . . . . . . . . . . . . . . . . . . . . . . . Scanalyzers . | . . . . . . . . . . . . . . . . . . . . . . . . . . . . . Garrison Access 1 | . . . . . . . . . . . . . . . . . . . . . . . . . . . 1 . Watchers 1 | . . . . . . . . . . . . . . . . . . . . . . . . . . . 1 . Data Cores Recovered 1 | . . . . . . . . . . . . . 1 . . . . . . . . . . . . . . . Used . | . . . . . . . . . . . . . . . . . . . . . . . . . . . . . Hacking Detections 34 | . 5 . . . 6 1 . . . . . . 4 . . . . . . 8 . . . . 1 2 2 5 Full Trace Events 12 | . 1 . . . 2 . . . . . . . 1 . . . . . . 2 . . . . . . 1 5 Feedback Events 2 | . . . . . . . . . . . . . . . . . . . . . . . . . . . . 2 Corruption 1 | . . . . . . . . . . . . . . . . . . . . . . . . . . . . 1 Hackware Fried 1 | . . . . . . . . . . . . . . . . . . . . . . . . . . . . 1 Feedback Blocked . | . . . . . . . . . . . . . . . . . . . . . . . . . . . . . Robot Schematics Acquired 4 | . . . . . . . . . . . 4 . . . . . . . . . . . . . . . . . Robots Built . | . . . . . . . . . . . . . . . . . . . . . . . . . . . . . Authchips . | . . . . . . . . . . . . . . . . . . . . . . . . . . . . . Time . | . . . . . . . . . . . . . . . . . . . . . . . . . . . . . Total Robot Build Rating . | . . . . . . . . . . . . . . . . . . . . . . . . . . . . . Part Schematics Acquired 19 | . 1 . . . 1 . . . . . 12 . . . . 4 . . . 1 . . . . . . . . Parts Built 1 | . . . . . . . . . . . . . . . . . . . . 1 . . . . . . . . Authchips . | . . . . . . . . . . . . . . . . . . . . . . . . . . . . . Time 187 | . . . . . . . . . . . . . . . . . . . . 187 . . . . . . . . Total Part Build Rating 7 | . . . . . . . . . . . . . . . . . . . . 7 . . . . . . . . Parts Repaired 3 | . . . . . 1 . . . . . . . 1 . . . . . . . . . . . . 1 . . Time 93 | . . . . . 38 . . . . . . . 30 . . . . . . . . . . . . 25 . . Parts Recycled . | . . . . . . . . . . . . . . . . . . . . . . . . . . . . . Recycled Matter . | . . . . . . . . . . . . . . . . . . . . . . . . . . . . . Retrieved Matter . | . . . . . . . . . . . . . . . . . . . . . . . . . . . . . Retrieved Components 8 | . . . . . 6 . . . . . . . . . . . . . . 2 . . . . . . . . Parts Scanalyzed 1 | . . . . . . . . . . . . . . . . . . . . 1 . . . . . . . . Part Schematics Acquired 1 | . . . . . . . . . . . . . . . . . . . . 1 . . . . . . . . Parts Damaged . | . . . . . . . . . . . . . . . . . . . . . . . . . . . . . Bothacking | -11 -10 -10 -10 -9 -8 -7 -7 -6 -6 -6 -6 -5 -5 -5 -5 -5 -4 -4 -4 -4 -4 -4 -4 -3 -3 -2 -1 -1 ------------ Run | Yrd Mat Min Exi Min Mat Fac DSF Fac Low Low Dat Pro Fac Upp Upp Zhi Pro Fac Was Fac Upp Upp War Pro Res Res Acc Com Used RIF Installer . | . . . . . . . . . . . . . . . . . . . . . . . . . . . . . Robots Hacked . | . . . . . . . . . . . . . . . . . . . . . . . . . . . . . Non-combat . | . . . . . . . . . . . . . . . . . . . . . . . . . . . . . Combat . | . . . . . . . . . . . . . . . . . . . . . . . . . . . . . Robot Hacks Applied . | . . . . . . . . . . . . . . . . . . . . . . . . . . . . . Relay Couplers Released 2 | . . . . . . . . . . . . . . . . . . . . . . . . . . 2 . . Machine Destruction 2 | . . . . . . . . . . . . . . . . . . . . . . . . . . 2 . . Fabnet Peak Effective % . | . . . . . . . . . . . . . . . . . . . . . . . . . . . . . Robots Rewired . | . . . . . . . . . . . . . . . . . . . . . . . . . . . . . Allies Hacked . | . . . . . . . . . . . . . . . . . . . . . . . . . . . . . Hacks Repelled . | . . . . . . . . . . . . . . . . . . . . . . . . . . . . . Allies | -11 -10 -10 -10 -9 -8 -7 -7 -6 -6 -6 -6 -5 -5 -5 -5 -5 -4 -4 -4 -4 -4 -4 -4 -3 -3 -2 -1 -1 -------- Run | Yrd Mat Min Exi Min Mat Fac DSF Fac Low Low Dat Pro Fac Upp Upp Zhi Pro Fac Was Fac Upp Upp War Pro Res Res Acc Com Total Allies . | . . . . . . . . . . . . . . . . . . . . . . . . . . . . . Largest Group . | . . . . . . . . . . . . . . . . . . . . . . . . . . . . . Highest-Rated Group . | . . . . . . . . . . . . . . . . . . . . . . . . . . . . . Highest-Rated Ally . | . . . . . . . . . . . . . . . . . . . . . . . . . . . . . Total Orders . | . . . . . . . . . . . . . . . . . . . . . . . . . . . . . Ally Attacks . | . . . . . . . . . . . . . . . . . . . . . . . . . . . . . Total Damage . | . . . . . . . . . . . . . . . . . . . . . . . . . . . . . Kills . | . . . . . . . . . . . . . . . . . . . . . . . . . . . . . Allies Corrupted . | . . . . . . . . . . . . . . . . . . . . . . . . . . . . . Allies Melted 1 | . . . . . . . . . . . . . . . . . . . . . . . . . . 1 . . Intel | -11 -10 -10 -10 -9 -8 -7 -7 -6 -6 -6 -6 -5 -5 -5 -5 -5 -4 -4 -4 -4 -4 -4 -4 -3 -3 -2 -1 -1 ------- Run | Yrd Mat Min Exi Min Mat Fac DSF Fac Low Low Dat Pro Fac Upp Upp Zhi Pro Fac Was Fac Upp Upp War Pro Res Res Acc Com Robot Analysis Total 6 | . 2 . . . . . . . . . . . . . . 4 . . . . . . . . . . . . Derelict Logs Recovered 11 | . . 1 . . . . . . 2 1 . 2 . 2 . . 1 . . . 1 1 . . . . . . Drone Launches . | . . . . . . . . . . . . . . . . . . . . . . . . . . . . . Drone Recoveries . | . . . . . . . . . . . . . . . . . . . . . . . . . . . . . Decoded 0b10 Intel 59 | . . . . . . . . . . . . . 7 . . . . 2 2 14 . . . . 2 9 13 10 Traps 6 | . . . . . . . . . . . . . 1 . . . . . . 2 . . . . . . 1 2 Emergency Access 5 | . . . . . . . . . . . . . 2 . . . . . . 2 . . . . . 1 . . Items 39 | . . . . . . . . . . . . . 4 . . . . 2 2 9 . . . . 2 6 7 7 Machines 6 | . . . . . . . . . . . . . . . . . . . . 1 . . . . . 2 3 . Patrols 2 | . . . . . . . . . . . . . . . . . . . . . . . . . . . 1 1 Guards 1 | . . . . . . . . . . . . . . . . . . . . . . . . . . . 1 . Exploration | -11 -10 -10 -10 -9 -8 -7 -7 -6 -6 -6 -6 -5 -5 -5 -5 -5 -4 -4 -4 -4 -4 -4 -4 -3 -3 -2 -1 -1 ------------- Run | Yrd Mat Min Exi Min Mat Fac DSF Fac Low Low Dat Pro Fac Upp Upp Zhi Pro Fac Was Fac Upp Upp War Pro Res Res Acc Com Turns Passed 9772 | 191 1325 433 1429 160 571 56 40 38 745 588 78 587 211 157 150 60 81 48 59 702 156 73 508 183 93 309 427 314 Spaces Moved 13179 | 88 557 158 547 43 555 100 105 62 1414 631 107 748 617 466 467 163 293 123 164 891 449 181 1271 495 227 666 904 687 Core 123 | 3 . . . . . . . . . . . . . . . . . . . . . . . . . . . 120 Treads 579 | 85 494 . . . . . . . . . . . . . . . . . . . . . . . . . . . Legs 876 | . 63 158 547 43 65 . . . . . . . . . . . . . . . . . . . . . . . Wheels . | . . . . . . . . . . . . . . . . . . . . . . . . . . . . . Hover . | . . . . . . . . . . . . . . . . . . . . . . . . . . . . . Flight 11601 | . . . . . 490 100 105 62 1414 631 107 748 617 466 467 163 293 123 164 891 449 181 1271 495 227 666 904 567 Fastest Speed 21 | 50 160 260 260 260 28 26 26 22 21 21 26 21 21 25 27 27 26 26 26 26 31 31 28 28 25 27 26 26 Average Speed 50 | 156 204 260 260 260 49 26 26 22 29 25 26 26 24 26 27 27 26 26 26 30 31 31 29 28 25 27 27 37 Slowest Speed 400 | 160 400 260 260 260 260 26 26 22 99 26 26 96 99 27 27 27 27 26 26 104 31 31 31 28 27 29 34 150 Overloaded Moves . | . . . . . . . . . . . . . . . . . . . . . . . . . . . . . Propulsion Burnouts . | . . . . . . . . . . . . . . . . . . . . . . . . . . . . . Robots Hopped 38 | . . . . . . . . . . . . . 4 . . . . . . 3 . . 10 . . 4 11 6 Cave-ins Triggered 1 | . . . . . . . . . . . . . . . . . . . . . . . . . . . 1 . Exploration Rate (%) 49 | 6 83 51 93 16 36 3 82 2 98 68 75 77 18 70 68 62 56 5 83 20 68 45 98 80 6 19 27 31 Regions Visited 28 Branch Regions 16 Pre-discovered Areas 7 | . . . 1 . . . . . . . 1 . . 2 . 3 . . . . . . . . . . . . Known Exits Taken 19 | . . . . . 1 1 . 1 1 1 1 1 1 1 1 1 1 . . 1 1 1 1 1 1 1 . . Unknown Exits Taken 6 | 1 1 1 1 1 . . . . . . . . . . . . . . . . . . . . . . 1 . Scrap Searched 16 | . . . . . . . . . 4 2 . 3 . 2 1 . 2 . . . 1 . . 1 . . . . Spaces Dug 101 | . . . . . . . . . 7 . . . . . . . . . . 25 2 5 . 6 3 18 29 6 Terrain Destroyed 630 | . 5 31 . 23 18 . . . 185 13 . 58 13 26 89 . 7 . . 25 2 5 . 51 3 18 52 6 Melee 94 | . . . . . . . . . . . . . . . . . . . . 25 2 5 . 6 3 18 29 6 Projectile 4 | . . . . . . . . . . 1 . 3 . . . . . . . . . . . . . . . . AOE 532 | . 5 31 . 23 18 . . . 185 12 . 55 13 26 89 . 7 . . . . . . 45 . . 23 . Terrain Rammed . | . . . . . . . . . . . . . . . . . . . . . . . . . . . . . Walls Destroyed . | . . . . . . . . . . . . . . . . . . . . . . . . . . . . . Machines Disabled . | . . . . . . . . . . . . . . . . . . . . . . . . . . . . . Actions | -11 -10 -10 -10 -9 -8 -7 -7 -6 -6 -6 -6 -5 -5 -5 -5 -5 -4 -4 -4 -4 -4 -4 -4 -3 -3 -2 -1 -1 --------- Run | Yrd Mat Min Exi Min Mat Fac DSF Fac Low Low Dat Pro Fac Upp Upp Zhi Pro Fac Was Fac Upp Upp War Pro Res Res Acc Com Total 15615 | 110 675 171 555 70 777 127 118 85 1700 1024 156 1103 661 497 482 179 294 138 179 1267 460 187 1385 524 256 740 976 719 Wait 1789 | . 57 1 . 4 112 24 . 18 242 369 50 315 17 16 3 . . 8 15 315 7 2 107 16 16 48 24 3 Move 13086 | 87 556 157 546 42 554 99 104 61 1413 630 106 747 609 465 466 162 292 123 163 884 448 180 1255 494 226 659 883 675 Hop 28 | . . . . . . . . . . . . . 3 . . . . . . 3 . . 5 . . 2 9 6 Pick Up 85 | 2 17 4 1 3 13 . 3 1 2 3 . 5 4 2 2 3 . . 1 10 1 . . 2 2 2 . 2 Fast Attach 47 | 7 1 . . . 4 . . 1 1 2 . 3 4 2 . 1 1 2 . 3 . . 5 . . 2 4 4 Attach 56 | . 1 1 . 1 3 2 . 3 4 3 . 4 1 2 2 2 . 2 . 2 1 . . 1 5 2 4 10 Detach 21 | . . . . . 1 1 . 1 . 1 . 5 2 2 . . . 2 . . . . . . 1 . 2 3 Swap 65 | . 4 3 . 4 22 . . . 5 . . 2 2 1 1 4 . 1 . 7 . . 7 . 1 1 . . Drop 81 | . 3 . 1 4 28 . 3 . . . . 1 9 4 1 2 . . . 15 . . 6 2 2 . . . Fire 209 | 14 32 5 . 12 40 1 . . 33 16 . 21 10 3 7 . 1 . . . 1 . . 3 . . 5 5 Melee 124 | . . . . . . . . . . . . . . . . 5 . . . 28 2 5 . 6 3 24 45 6 Ram 4 | . . . . . . . . . . . . . . . . . . . . . . . . . . . . 4 Kick . | . . . . . . . . . . . . . . . . . . . . . . . . . . . . . Crush 4 | . 4 . . . . . . . . . . . . . . . . . . . . . . . . . . . Escape Stasis 9 | . . . . . . . 8 . . . . . . . . . . . . . . . . . . . . 1 Rewire 7 | . . . 7 . . . . . . . . . . . . . . . . . . . . . . . . . Trap . | . . . . . . . . . . . . . . . . . . . . . . . . . . . . . Miscellaneous . | . . . . . . . . . . . . . . . . . . . . . . . . . . . . . Route ------- -11/Scrapyard -10/Materials (discovered 3 exits: [*Mat x2] / [*Min]) -10/Mines -10/Exiles (discovered 2 exits: [*Min x2]) -9/Mines -8/Materials -7/Factory -7/DSF -6/Factory -6/Lower Caves -6/Lower Caves (discovered 2 exits: *Fac / *Dat) -6/Data Miner -5/Proximity Caves -5/Factory (discovered 3 exits: Fac / *Upp x2) -5/Upper Caves -5/Upper Caves (discovered 2 exits: *Fac / *Zhi) -5/Zhirov -4/Proximity Caves -4/Factory -4/Waste -4/Factory (discovered 7 exits: Res x4 / *Upp x2 / Arm) -4/Upper Caves -4/Upper Caves -4/Warlord -3/Proximity Caves -3/Research -2/Research (discovered 3 exits: *Acc x3) -1/Access -1/Command History --------- Turn | Location | Event 4 | -11/Scrapyard | Discovered new exit (range 15) 192 | -11/Scrapyard | Entered Materials 308 | -10/Materials | Build established: Mutant 478 | -10/Materials | Discovered new exit (range 5) 1274 | -10/Materials | Discovered new exit (range 14) 1349 | -10/Materials | Destroyed 8 combat bots 1354 | -10/Materials | Lost 3 parts (1p1n1u) 1460 | -10/Materials | Discovered new exit (range 8) 1517 | -10/Materials | Entered Mines 1541 | -10/Mines | Received a Rocket Launcher from a helpful Derelict 1724 | -10/Mines | Core integrity fell below 50% 1746 | -10/Mines | Learned Materials emergency access door positions 1935 | -10/Mines | Deemed a non-threat by the Exiles lab entrance 1937 | -10/Mines | Discovered new exit (range 5) 1950 | -10/Mines | Entered Exiles 1950 | -10/Exiles | Found Exiles lab destroyed 2045 | -10/Exiles | Build established: Scavenger-Mutant 2221 | -10/Exiles | Learned location of Zion (-7) 2385 | -10/Exiles | Discovered new exit (range 10) 3119 | -10/Exiles | Opened EX-Vault 3347 | -10/Exiles | Discovered new exit (range 14) 3379 | -10/Exiles | Entered Mines 3406 | -9/Mines | Assembled infested the area 3480 | -9/Mines | Core integrity fell below 20% 3489 | -9/Mines | Met a Derelict bent on vengeance 3490 | -9/Mines | Discovered new exit (range 15) 3539 | -9/Mines | Entered Materials 3539 | -8/Materials | Evolved 4 slots: Propulsion x2, Utility x2 3796 | -8/Materials | Repaired Imp. Light Armor Plating 3853 | -8/Materials | Discovered new exit (range 14) 4020 | -8/Materials | Build established: Sprinter 4031 | -8/Materials | Central database locked down 4109 | -8/Materials | Identified exit to Factory 4110 | -8/Materials | Entered Factory 4110 | -7/Factory | Evolved 2 slots: Propulsion x1, Utility x1 4166 | -7/Factory | Identified exit to DSF 4166 | -7/Factory | Entered DSF 4187 | -7/DSF | Discovered new exit (range 11) 4190 | -7/DSF | Identified exit to Factory 4195 | -7/DSF | Additional patrols routed to DSF 4206 | -7/DSF | Entered Factory 4206 | -6/Factory | Evolved 2 slots: Propulsion x1, Utility x1 4242 | -6/Factory | Discovered new exit (range 6) 4244 | -6/Factory | Identified exit to Lower Caves 4244 | -6/Factory | Entered Lower Caves 4251 | -6/Lower Caves | Learned 4 Factory zone layouts 4252 | -6/Lower Caves | Learned Factory security intel 4278 | -6/Lower Caves | Encountered a Warlord checkpoint 4328 | -6/Lower Caves | Spotted B-75 Beast 4514 | -6/Lower Caves | Attracted the attention of an 0b10 checkpoint 4982 | -6/Lower Caves | Discovered new exit (range 13) 4988 | -6/Lower Caves | Identified exit to Lower Caves 4989 | -6/Lower Caves | Entered another Lower Caves area 5039 | -6/Lower Caves | Lost 7 parts (2p1n2u2w) 5084 | -6/Lower Caves | Discovered new exit (range 4) 5085 | -6/Lower Caves | Identified exit to Factory 5223 | -6/Lower Caves | Learned location of 2 exits from Factory 5517 | -6/Lower Caves | Attracted the attention of an 0b10 checkpoint 5560 | -6/Lower Caves | Discovered new exit (range 12) 5561 | -6/Lower Caves | Encountered a Warlord checkpoint 5577 | -6/Lower Caves | Identified exit to Data Miner 5577 | -6/Lower Caves | Entered Data Miner 5577 | -6/Data Miner | Discovered new exit (range 6) 5579 | -6/Data Miner | Identified exit to Proximity Caves 5583 | -6/Data Miner | Met Data Miner 5610 | -6/Data Miner | Learned location of Section 7 (-2) 5610 | -6/Data Miner | Acquired the access code to Warlord's prototype stash 5634 | -6/Data Miner | Received God Mode back door access code from Data Miner 5655 | -6/Data Miner | Entered Proximity Caves 6236 | -5/Proximity Caves | Learned location of 1 exit from Factory 6240 | -5/Proximity Caves | Discovered exit to Factory (range 8) 6242 | -5/Proximity Caves | Entered Factory 6242 | -5/Factory | Evolved 2 slots: Power x1, Utility x1 6243 | -5/Factory | Identified exit to Upper Caves 6243 | -5/Factory | Identified exit to Factory 6374 | -5/Factory | Incoming investigation squad redirected 6389 | -5/Factory | Repaired Imp. VTOL Module 6453 | -5/Factory | Entered Upper Caves 6470 | -5/Upper Caves | Learned Factory emergency access door positions 6479 | -5/Upper Caves | Learned 6 Proximity Caves zone layouts 6479 | -5/Upper Caves | Learned Factory security intel 6479 | -5/Upper Caves | Learned Research security intel 6481 | -5/Upper Caves | Attracted the attention of an 0b10 base 6497 | -5/Upper Caves | Encountered a Warlord checkpoint 6516 | -5/Upper Caves | Ambushed by wild Derelicts 6541 | -5/Upper Caves | Lost 4 parts (1p2n1u) 6608 | -5/Upper Caves | Discovered new exit (range 7) 6610 | -5/Upper Caves | Identified exit to Upper Caves 6610 | -5/Upper Caves | Entered another Upper Caves area 6610 | -5/Upper Caves | Discovered exit to Factory (range 10) 6611 | -5/Upper Caves | Encountered a Warlord checkpoint 6701 | -5/Upper Caves | Attracted the attention of an 0b10 outpost 6756 | -5/Upper Caves | Discovered new exit (range 15) 6760 | -5/Upper Caves | Identified exit to Zhirov 6760 | -5/Upper Caves | Entered Zhirov 6760 | -5/Zhirov | Discovered new exit (range 3) 6762 | -5/Zhirov | Identified exit to Proximity Caves 6766 | -5/Zhirov | Met Zhirov 6772 | -5/Zhirov | Learned location of Testing (-2) 6772 | -5/Zhirov | Learned location of Quarantine (-3) 6772 | -5/Zhirov | Learned location of Command (-1) 6777 | -5/Zhirov | Zhirov requested help retrieving the SGEMP Prototype 6782 | -5/Zhirov | Found Alien Artifact 6782 | -5/Zhirov | Identified Integrated Reactor 6782 | -5/Zhirov | Installed Integrated Reactor, increased core energy generation (+10) 6789 | -5/Zhirov | Found Alien Artifact 6820 | -5/Zhirov | Entered Proximity Caves 6864 | -4/Proximity Caves | Learned location of 1 exit from Upper Caves 6871 | -4/Proximity Caves | Spotter reported a threat 6871 | -4/Proximity Caves | Spotter reported a threat 6899 | -4/Proximity Caves | Discovered exit to Factory (range 5) 6901 | -4/Proximity Caves | Entered Factory 6901 | -4/Factory | Evolved 2 slots: Utility x2 6902 | -4/Factory | Identified exit to Armory 6949 | -4/Factory | Manually triggered Chute Trap 6949 | -4/Factory | Sucked down chute 6949 | -4/Factory | Entered Waste 6956 | -4/Waste | Spotted C-40 Crusher 6967 | -4/Waste | Spotted C-40 Crusher 6969 | -4/Waste | Spotted C-40 Crusher 6980 | -4/Waste | Spotted C-40 Crusher 6993 | -4/Waste | Spotted C-40 Crusher 6994 | -4/Waste | Spotted C-40 Crusher 7002 | -4/Waste | Discovered new exit (range 12) 7005 | -4/Waste | Identified exit to Factory 7008 | -4/Waste | Entered Factory 7201 | -4/Factory | Build established: Hacker-Sprinter 7477 | -4/Factory | Fabricated Exp. Optical Array? 7526 | -4/Factory | Build established: Hacker-Scout 7675 | -4/Factory | Identified exit to Upper Caves 7675 | -4/Factory | Identified exit to Research 7710 | -4/Factory | Entered Upper Caves 7711 | -4/Upper Caves | Identified exit to Upper Caves 7759 | -4/Upper Caves | Learned Research emergency access door positions 7866 | -4/Upper Caves | Attracted the attention of an 0b10 checkpoint 7866 | -4/Upper Caves | Entered another Upper Caves area 7869 | -4/Upper Caves | Identified exit to Warlord 7939 | -4/Upper Caves | Entered Warlord 7962 | -4/Warlord | Discovered new exit (range 12) 7965 | -4/Warlord | Identified exit to Proximity Caves 8008 | -4/Warlord | Opened side exit 8115 | -4/Warlord | Received a Watcher feed algorithm from an ecstatic Tinkerer 8263 | -4/Warlord | Warlord's base attacked by MAIN.C 8276 | -4/Warlord | Found Prototype Energy Gun 8276 | -4/Warlord | Identified Vortex Shotgun 8293 | -4/Warlord | Met Warlord 8297 | -4/Warlord | Opened Warlord's prototype stash 8308 | -4/Warlord | Found Prototype Reactor 8308 | -4/Warlord | Identified Vortex Chain Reactor 8315 | -4/Warlord | Found Prototype Device 8315 | -4/Warlord | Identified Thermal Barrier 8317 | -4/Warlord | Found Prototype Processor 8317 | -4/Warlord | Identified Exp. Armor Integrity Analyzer 8447 | -4/Warlord | Entered Proximity Caves 8558 | -3/Proximity Caves | Attracted the attention of an 0b10 checkpoint 8629 | -3/Proximity Caves | Discovered exit to Research (range 3) 8630 | -3/Proximity Caves | Entered Research 8630 | -3/Research | Evolved 2 slots: Propulsion x1, Utility x1 8667 | -3/Research | Spotted B-86 Titan 8681 | -3/Research | Discovered new exit (range 10) 8719 | -3/Research | Identified exit to Research 8723 | -3/Research | Entered another Research area 8723 | -2/Research | Warlord forces began assault on 0b10 8723 | -2/Research | Evolved 2 slots: Utility x2 8785 | -2/Research | Identified exit to Access 8830 | -2/Research | Repaired Adv. Sensor Array 8833 | -2/Research | Research machine network offline 9032 | -2/Research | Entered Access 9032 | -1/Access | Evolved 2 slots: Utility x1, Weapon x1 9113 | -1/Access | Crushed by falling debris 9188 | -1/Access | Incoming investigation squad redirected 9400 | -1/Access | Build established: Hacker-Sprinter 9443 | -1/Access | Lost 3 parts (1n1u1w) 9457 | -1/Access | Discovered new exit (range 7) 9459 | -1/Access | Entered Command 9464 | -1/Command | Spotted B-99 Colossus 9515 | -1/Command | Identified Transdimensional Reconstructor 9515 | -1/Command | Failed to warp due to unstable space 9534 | -1/Command | Lost 6 parts (1p1n4u) 9560 | -1/Command | Adv. Hacking Suite fried by hacking feedback 9562 | -1/Command | Spotted Executioner 9562 | -1/Command | Spotted Executioner 9562 | -1/Command | Spotted Striker 9562 | -1/Command | Spotted Alpha 7 9562 | -1/Command | Spotted Executioner 9562 | -1/Command | Spotted Executioner 9562 | -1/Command | Spotted Striker 9562 | -1/Command | Spotted Alpha 7 9564 | -1/Command | Spotted B-99 Colossus 9564 | -1/Command | Spotted B-99 Colossus 9572 | -1/Command | Core integrity fell below 50% 9608 | -1/Command | Disengaged cave seal 9612 | -1/Command | Incoming investigation squad redirected 9627 | -1/Command | Incoming investigation squad redirected 9632 | -1/Command | Lost 14 parts (7n5u2w) 9645 | -1/Command | Lost 3 allies 9651 | -1/Command | Incoming investigation squad redirected 9716 | -1/Command | Core integrity fell below 20% 9743 | -1/Command | Lost 5 parts (1n4u) 9759 | -1/Command | Incoming investigation squad redirected 9773 | -1/Command | Destroyed by H-81 Overseer with Heavy Linear Accelerator Last Messages --------------- 09698_ Slug penetrates Wall. 09706_ Q-thruster destroyed. 09707_ Adv. Shield Generator destroyed. 09708_ Adv. Hacking Suite destroyed. 09711_ System corrupted: Imp. Cloaking Device rejected. 09711_ Lrn. Terrain Scanner destroyed. 09711_ Penetrated by Slug. 09712_ >> DECODED: Enh. Nova Cannon location. 09712_ Adv. Shield Generator destroyed. 09724_ Penetrated by Slug. 09733_ Slammed into Y-72 Warden. 09734_ 0b10 Decoder Chip [Generic] broken. 09734_ Destabilizing: Short circuit. 09737_ Penetrated by Slug. 09739_ Connecting with Terminal... 09739_ ALERT: Suspicious activity at Terminal C015. Dispatching Investigation squad. 09744_ Slammed into K-01 Serf. 09759_ ALERT: Higher priority target reported, redirecting investigation. [Achievement: This Is Interesting...] Map ----- +----------------------------------------------------+ | ???????????????????????# # ???? | | ???????????????????????# # """" ??? | | #??????????????????????# + """" " "???? | | ???????????????????????# # """" "R""??? | | ???????????????????????# # """" """" ?? | | ???????????????????????# # # | | ???????????????????????# # # | | ???????????????????????# ##############?? | | ???????????????????????# #????#######???? | | ??????????????????????## ###### #???? | | ??????????????????##### "T #???? | | ??????????? "" #???? | | ????????????????#/##### #???? | | ??????????????????????## ###### #???? | | ???????????????????????# #????### ###???? | | ## ????????????????????# +??????# #?????? | | #???????????????????# #??????# #?????? | | #???????????????????#h#??????# #?????? | | +???????????????????# ???????# #?????? | | #???????????????????#h???????# #?????? | | ?????????????????????# ???????# #?????? | | ##?????????????????????# ???????# #?????? | | ?????????????????????### ###????# #?????? | | ?????????????????????# #???## ##????? | | ?????????????????????# %#####Y #????? | | ?????????????????????+ @ #????? | | ????????????????????# ##### #????? | | ???????????????????# #???## ####### | | ???????????????????## ##????# # ! # | | ??????????????????????# #?????# # # | | ??????????????????????# #?????# # # | | ??????????????????????+ +?????# + ! # | | ??????????????????????# #?????# # # | | ??????????????????????# #?????# # # | | ??????????????????????# ??????# # # | | ??????????????????????# ??????# # # | | ??????????????????????# ??????# # # | | ??????????????????????# ??????# # # | | ??????????????????????# ??????# # # | | ??????????????????????# ??????# # # | | ??????????????????????? ??????# ####### | | ????????????????????????????????# #?????? | | ????????????????????????????#####+######? | | ????????????????????????????# #? | | ????????????????????????????# ! #? | | ?????????]??????????????????# #? | | ????????????????????????????# #? | | ????????????????????????????# #? | | ????????????????????????????# #? | | ????????????????????????????############? | +----------------------------------------------------+ Best States ------------- Heat Dissipation 52 Energy Generation 65 Energy Capacity 700 Matter Stores 300 Matter Capacity 300 Sight Range 23 Robot Scan Range 19 Terrain Scan Range 24 Terrain Scan Density 10 Jamming Range 16 Armor Coverage 300 Core Shielding 30 Propulsion Shielding 15 Evasion (%) 74 Target Analysis 5 Recoil Reduction 2 Offensive Hacking 42 Item Schematics ----------------- Med. Storage Unit | -10/Materials | Hacked Imp. Light Armor Plating | -8/Materials | Hacked Lgt. Regenerative Plating | -6/Data Miner | Free Graphene Brace | -6/Data Miner | Free Adv. Cooling System | -6/Data Miner | Free Combat Drone Bay | -6/Data Miner | Free Enh. Flexi-carbon Leg | -6/Data Miner | Free Imp. Matter Compressor | -6/Data Miner | Free Cld. Plasma Rifle | -6/Data Miner | Free Impulse Thruster | -6/Data Miner | Free Imp. Force Field | -6/Data Miner | Free Hvy. Gauss Cannon | -6/Data Miner | Free Lgt. Particle Reactor | -6/Data Miner | Free Adv. Component Analysis Suite | -6/Data Miner | Free Assault Drone Bay | -5/Zhirov | Free Exp. Heat Sink | -5/Zhirov | Free Exp. Optical Array | -5/Zhirov | Free Imp. Arc Thrower | -5/Zhirov | Free Lgt. Quantum Reactor | -4/Factory | Scanalyzed Robot Schematics ------------------ R-10 Processor | -6/Data Miner | Free B-60 Warrior | -6/Data Miner | Free L-41 Fighter | -6/Data Miner | Free M-30 Cleanser | -6/Data Miner | Free Fabricated ------------ Exp. Optical Array | x1 | -4/Factory Alien Tech Used ----------------- Integrated Reactor Transdimensional Reconstructor Achievements -------------- A Powerful Ally? Deadly Force Decoder Ring Reappropriation The Oracle This Is Interesting... Wheee! Challenges ------------ None Game ------ Seed ScrapoidWeightShovel Manual? 0 Play Time 03:56:22 Cumulative 32.2 hours Start 2024.09.30 @ 20:42:57 End 2024.10.01 @ 21:28:23 Sessions 9 Manual Loads 0 Difficulty Rogue Special Mode None Game No. 17 Rogue 17 Adventurer 0 Explorer 0 Win Type - Total 2 Types 2/0/0/0/0/0/0/0/0 Lore% 27 Gallery% 23 Achievement% 30 Wizard Run 0 Options --------- Layout 0 ASCII 0 Keyboard 0 Movement Vi Keybinds 0 Fullscreen 2 Font 36/X11++ Map View 76x50 Zoom Use 0% Tactical HUD 1 Map Filters NONE Filters NONE Steam 1 RUN: 4b7b4f9f-33a8-481e-9674-cdfc4f799310